[Event "GER-chT Youth Countries 2018"]
[Site "Wurzburg"]
[Date "2018.10.07"]
[Round "7"]
[White "Svane, Frederik"]
[Black "Philipp, Mathias"]
[Result "1-0"]
[ECO "C03"]
[WhiteElo "2287"]
[BlackElo "2076"]
[Annotator "NA"]
[PlyCount "145"]
[EventDate "2018.10.03"]
[EventType "team-tourn"]
[EventCountry "GER"]
[SourceTitle "playchess.com"]
[Source "ChessBase"]
[SourceQuality "1"]
[TimeControl "40/5400+30:1800+30"]

{[%evp 26,134,17,12,21,30,16,23,45,36,116,126,117,128,127,123,123,129,126,140,143,137,158,32767,110,32767,201,32767,32767,32767,32767,32767,343,32767,340,253,216,197,159,172,214,32767,32767,125,32767,32767,32767,32767,32767,32767,32767,32767,170,32767,111,129,32767,70,132,0,251,149,32767,145,201,211,205,247,231,135,32767,32767,268,157,32767,306,260,32767,32767,32767,627,1730,955,1523,1861,0,32767,32767,32767,32767,32767,32767,5110,32767,29958,12723,12846,29974,32767,29975,12847,29978,29964,12848,12849,32767,32767,12850,29981,29982,29982]} 1. e4 {[%emt 0:00:00]} e6 {[%emt 0:00:00]} 2. d4 {[%emt 0:00:00]} d5 {[%emt 0:00:00]} 3. Nd2 {[%emt 0:00:00]} Be7 {[%emt 0:00:00]} 4. Bd3 {[%emt 0:03:08]} c5 {[%emt 0:00:00]} 5. Ngf3 {[%emt 0:02:46]} Nf6 {[%emt 0:00:10]} 6. dxc5 {[%emt 0:05:09]} dxe4 {[%emt 0:01:11]} 7. Nxe4 {[%emt 0:00:09]} Nxe4 {[%emt 0:00:04]} 8. Bxe4 {[%emt 0:00:14]} Qxd1+ {[%emt 0:00:02]} 9. Kxd1 {[%emt 0:00:14]} Bxc5 {[%emt 0:00:10]} 10. Ke2 {[%emt 0:00:29]} Nc6 {[%emt 0:01:02] C03: French Tarrasch: Unusual Black 3rd moves} (10... Nd7 11. Be3 Bxe3 12. Kxe3 Nc5 13. Rhd1 Ke7 14. Bd3 f6 15. Bc4 Bd7 16. b4 Na4 17. Rxd7+ Kxd7 18. Bb5+ {½-½ (52) Svidler,P (2753)-Yu,Y (2759) Shenzhen 2018}) 11. Be3 {[%emt 0:02:02]} Bxe3 {[%emt 0:04:53]} 12. Kxe3 {[%emt 0:00:09]} Ke7 $146 {[%emt 0:03:01]} ({Predecessor:} 12... f6 13. Rhd1 Ke7 14. Bxc6 bxc6 15. Nd4 Bd7 16. Nb3 Rab8 17. Rd2 Rb5 18. f4 g5 19. fxg5 Rxg5 20. Rad1 {½-½ (20) Sudakova,I (2330)-Molchanova,T (2359) Dagomys 2008}) 13. Rhd1 {[%emt 0:03:28]} Bd7 {[%emt 0:12:54]} 14. Rd2 {[%emt 0:05:23]} f6 {[%emt 0:09:04]} 15. Rad1 {[%emt 0:05:27]} Rad8 {[%emt 0:00:13]} 16. c4 {[%emt 0:03:30]} Na5 {[%emt 0:03:10]} 17. b3 {[%emt 0:00:52]} Bc6 {[%emt 0:00:46]} ({Black should try} 17... Nc6 $14) 18. Rxd8 {[%emt 0:02:39]} Rxd8 {[%emt 0:00:04]} 19. Rxd8 {[%emt 0:00:04]} Kxd8 {[%emt 0:00:04]} 20. Bxh7 {[%emt 0:01:58]} e5 {[%emt 0:11:59]} 21. g3 {[%emt 0:13:56]} Ke7 {[%emt 0:02:55]} 22. Nh4 {[%emt 0:08:45]} Bd7 {[%emt 0:14:06]} 23. Be4 {[%emt 0:04:02]} Nc6 {[%emt 0:02:33]} 24. f4 {[%emt 0:13:20]} exf4+ {[%emt 0:03:02]} 25. gxf4 {[%emt 0:00:10]} g5 {[%emt 0:03:56]} (25... Kd6 $16 26. a3 Na5) 26. Nf3 {[%emt 0:01:37]} g4 {[%emt 0:05:48]} 27. Nd4 {[%emt 0:00:29]} Kd6 {[%emt 0:04:52]} 28. a3 {[%emt 0:07:42]} a5 {[%emt 0:01:29]} 29. Kd3 {[%emt 0:01:41]} Bc8 {[%emt 0:06:13]} (29... Kc5 $142 30. Kc3 Nxd4 31. b4+ axb4+ 32. axb4+ Kd6) 30. Kc3 {[%emt 0:00:30]} Ne7 {[%emt 0:00:34]} 31. b4 {[%emt 0:02:47]} axb4+ {[%emt 0:00:10]} 32. axb4 {[%emt 0:00:08]} f5 {[%emt 0:00:48]} 33. Bd3 {[%emt 0:02:50]} b6 {[%emt 0:01:09]} 34. Nb5+ {[%emt 0:01:34]} Ke6 {[%emt 0:00:43]} 35. Nd4+ {[%emt 0:00:06]} Kd6 {[%emt 0:00:11]} 36. Kd2 {[%emt 0:00:34]} Bd7 {[%emt 0:00:44]} 37. Ke3 {[%emt 0:03:31]} Bc8 {[%emt 0:05:25]} 38. Nc2 {[%emt 0:04:39]} Bd7 $11 {[%emt 0:01:09] und Schwarz steht sicher.} 39. Kd4 {[%emt 0:00:46]} Nc6+ {[%emt 0:00:21]} 40. Kc3 {[%emt 0:00:09]} Ne7 {[%emt 0:00:35]} 41. Kd2 {[%emt 0:10:15]} (41. Ne3 $16) 41... Ng6 {[%emt 0:05:32] [#]} 42. Ke3 {[%emt 0:00:27]} ({White should play} 42. Ne3 $1 $16 Nxf4 43. Nxf5+ Ke5 44. Ne3) 42... Nh4 $2 {[%emt 0:03:06]} 43. Ne1 {[%emt 0:00:51]} Ng6 {[%emt 0:00:22]} 44. Bf1 {[%emt 0:01:30]} Be6 {[%emt 0:03:10] [#]} 45. Nc2 $1 {[%emt 0:00:54]} Bd7 {[%emt 0:00:10]} 46. Nd4 {[%emt 0:00:32]} Bc8 {[%emt 0:04:22]} 47. h3 {[%emt 0:00:24]} gxh3 {[%emt 0:02:56]} 48. Bxh3 {[%emt 0:00:09]} Ne7 {[%emt 0:00:43]} 49. Bf1 {[%emt 0:01:04]} Bd7 {[%emt 0:00:27]} 50. Bd3 {[%emt 0:02:21]} Bc8 {[%emt 0:01:34]} 51. Kf2 {[%emt 0:06:47]} Bd7 {[%emt 0:00:43]} 52. Kg3 {[%emt 0:02:03]} Nc6 {[%emt 0:01:32] [#]} (52... Kc7 $142 53. Kh4 Kd8) 53. Nxc6 $1 {[%emt 0:00:14]} Kxc6 {[%emt 0:00:24]} 54. Kh4 {[%emt 0:00:48]} Be6 {[%emt 0:01:54]} 55. Kg3 $2 {[%emt 0:01:46]} (55. Kh5 $18 Kd6 56. Kg6) 55... Bd7 {[%emt 0:03:28]} 56. Kf2 {[%emt 0:00:21]} Kd6 {[%emt 0:00:06]} 57. Ke3 {[%emt 0:00:04]} Bc8 {[%emt 0:00:47]} 58. Kd4 {[%emt 0:00:05]} Bd7 {[%emt 0:00:03]} 59. c5+ {[%emt 0:00:36]} bxc5+ {[%emt 0:00:04]} 60. bxc5+ {[%emt 0:00:04]} Kc6 {[%emt 0:00:27]} 61. Bc4 {[%emt 0:00:08]} Bc8 {[%emt 0:01:04]} 62. Bd5+ {[%emt 0:00:58]} Kb5 {[%emt 0:00:12]} 63. c6 {[%emt 0:01:05]} Kb6 {[%emt 0:00:04]} 64. Ke5 {[%emt 0:00:13]} Kc7 {[%emt 0:00:12]} 65. Be6 {[%emt 0:00:19]} Ba6 {[%emt 0:01:47]} 66. Bd7 {[%emt 0:00:04]} Bd3 {[%emt 0:04:31]} 67. Bxf5 {[%emt 0:00:07]} Bf1 {[%emt 0:00:25]} 68. Bd7 {[%emt 0:00:06]} Bg2 {[%emt 0:00:08]} 69. f5 {[%emt 0:02:12]} Bh3 {[%emt 0:00:13]} 70. f6 {[%emt 0:00:06]} Bxd7 {[%emt 0:00:10]} 71. cxd7 {[%emt 0:00:34]} Kxd7 {[%emt 0:00:09]} 72. Kf5 {[%emt 0:00:15]} Ke8 {[%emt 0:00:10]} 73. Ke6 {[%emt 0:00:03]} 1-0

[Event "GER-chT Youth Countries 2018"]
[Site "Wurzburg"]
[Date "2018.10.07"]
[Round "7"]
[White "Urban, Konstantin"]
[Black "Browning, Alex"]
[Result "1-0"]
[ECO "B96"]
[WhiteElo "2279"]
[BlackElo "2150"]
[Annotator "ChessBase"]
[PlyCount "75"]
[EventDate "2018.10.03"]
[EventType "team-tourn"]
[EventCountry "GER"]
[SourceTitle "playchess.com"]
[Source "ChessBase"]
[SourceQuality "1"]
[TimeControl "40/5400+30:1800+30"]

1. e4 {[%emt 0:00:00]} c5 {[%emt 0:00:00]} 2. Nf3 {[%emt 0:00:00]} d6 {[%emt 0:00:00]} 3. d4 {[%emt 0:00:00]} cxd4 {[%emt 0:00:00]} 4. Nxd4 {[%emt 0:00:00]} Nf6 {[%emt 0:00:00]} 5. Nc3 {[%emt 0:00:07]} a6 {[%emt 0:00:04]} 6. Bg5 {[%emt 0:00:11]} e6 {[%emt 0:00:08]} 7. f4 {[%emt 0:00:07]} h6 {[%emt 0:00:05]} 8. Bh4 {[%emt 0:00:07]} Qb6 {[%emt 0:00:05]} 9. a3 {[%emt 0:00:19]} Be7 {[%emt 0:00:29]} 10. Bf2 {[%emt 0:00:11]} Qc7 {[%emt 0:00:10]} 11. Be2 {[%emt 0:00:20]} b5 {[%emt 0:04:22]} 12. Bf3 {[%emt 0:01:01]} Bb7 {[%emt 0:00:49]} 13. Qe2 {[%emt 0:00:22]} Nbd7 {[%emt 0:01:09]} 14. O-O-O {[%emt 0:00:57]} O-O {[%emt 0:15:53]} 15. g4 {[%emt 0:01:25]} d5 {[%emt 0:37:16]} 16. e5 {[%emt 0:25:20]} Ne4 {[%emt 0:01:22]} 17. Nxe4 {[%emt 0:01:10]} dxe4 18. Bxe4 {[%emt 0:00:16]} Bxe4 {[%emt 0:00:40]} 19. Qxe4 {[%emt 0:00:01]} Rfc8 {[%emt 0:00:14]} 20. h4 {[%emt 0:15:34]} b4 {[%emt 0:03:10]} 21. axb4 {[%emt 0:07:11]} Bxb4 {[%emt 0:01:19]} 22. Rh3 {[%emt 0:00:46]} Nc5 {[%emt 0:01:43]} 23. Qe2 {[%emt 0:00:47]} a5 {[%emt 0:07:36]} 24. Kb1 {[%emt 0:12:48]} a4 {[%emt 0:04:58]} 25. Qc4 {[%emt 0:01:37]} a3 {[%emt 0:04:00]} 26. Qxb4 {[%emt 0:02:11]} axb2 {[%emt 0:01:35]} 27. Ra3 {[%emt 0:06:46]} Ne4 {[%emt 0:03:58]} 28. Be1 {[%emt 0:04:55]} Rab8 {[%emt 0:00:14]} 29. Qa5 {[%emt 0:00:59]} Qc4 {[%emt 0:00:20]} 30. Qa6 {[%emt 0:02:10]} Qd5 {[%emt 0:02:49]} 31. Qd3 {[%emt 0:02:24]} Nc5 {[%emt 0:04:22]} 32. Qf3 {[%emt 0:00:27]} Rd8 {[%emt 0:01:08]} 33. Qxd5 {[%emt 0:00:51]} Rxd5 {[%emt 0:00:08]} 34. Ra2 {[%emt 0:02:09]} Rbd8 {[%emt 0:01:10]} 35. c3 {[%emt 0:00:12]} Rc8 {[%emt 0:00:14]} 36. Kxb2 {[%emt 0:00:41]} Nb7 {[%emt 0:00:38]} 37. Kc2 {[%emt 0:00:52]} Na5 {[%emt 0:00:16]} 38. Nf5 {[%emt 0:01:51]} 1-0

[Event "GER-chT Youth Countries 2018"]
[Site "Wurzburg"]
[Date "2018.10.07"]
[Round "7"]
[White "Pallas, Sebastian"]
[Black "Polster, Christian"]
[Result "0-1"]
[ECO "B08"]
[WhiteElo "2278"]
[BlackElo "2294"]
[Annotator "ChessBase"]
[PlyCount "64"]
[EventDate "2018.10.03"]
[EventType "team-tourn"]
[EventCountry "GER"]
[SourceTitle "playchess.com"]
[Source "ChessBase"]
[SourceQuality "1"]
[TimeControl "40/5400+30:1800+30"]

1. e4 {[%emt 0:00:00]} g6 {[%emt 0:00:00]} 2. d4 {[%emt 0:00:08]} Bg7 {[%emt 0:00:00]} 3. Nf3 {[%emt 0:00:58]} d6 {[%emt 0:00:04]} 4. h3 Nf6 {[%emt 0:00:27]} 5. Nc3 {[%emt 0:00:55]} c6 {[%emt 0:00:27]} 6. a4 {[%emt 0:00:13]} O-O {[%emt 0:00:18]} 7. Be2 {[%emt 0:01:55]} Nbd7 {[%emt 0:03:22]} 8. O-O {[%emt 0:00:38]} e5 {[%emt 0:00:13]} 9. dxe5 {[%emt 0:02:46]} dxe5 {[%emt 0:00:18]} 10. Qd6 {[%emt 0:00:44]} Re8 {[%emt 0:05:36]} 11. Bg5 {[%emt 0:07:17]} h6 {[%emt 0:01:29]} 12. Bh4 {[%emt 0:00:36]} g5 {[%emt 0:03:49]} 13. Bg3 {[%emt 0:00:15]} Nh5 {[%emt 0:01:04]} 14. Bc4 Nf4 {[%emt 0:02:06]} 15. Rad1 {[%emt 0:24:39]} Bf8 {[%emt 0:02:45]} 16. Qd2 {[%emt 0:00:56]} Qf6 {[%emt 0:01:30]} 17. Nh2 {[%emt 0:08:29]} Bb4 {[%emt 0:12:25]} 18. Bxf4 {[%emt 0:11:21]} exf4 {[%emt 0:06:54]} 19. Ng4 {[%emt 0:00:17]} Qg7 {[%emt 0:10:24]} 20. Qd4 {[%emt 0:06:46]} h5 {[%emt 0:20:01]} 21. Nh2 {[%emt 0:01:32]} Qxd4 {[%emt 0:05:20]} 22. Rxd4 {[%emt 0:00:06]} Bc5 {[%emt 0:00:06]} 23. Rd2 {[%emt 0:00:07]} Ne5 {[%emt 0:00:10]} 24. Be2 {[%emt 0:00:07]} g4 {[%emt 0:01:58]} 25. Kh1 {[%emt 0:00:39]} Be6 {[%emt 0:03:34]} 26. hxg4 {[%emt 0:07:16]} hxg4 {[%emt 0:00:20]} 27. g3 {[%emt 0:00:12]} f3 {[%emt 0:01:31]} 28. Bd3 {[%emt 0:00:05]} Kg7 {[%emt 0:01:10]} 29. Nd1 {[%emt 0:00:18]} Rad8 {[%emt 0:02:59]} 30. b3 {[%emt 0:02:42]} Bb4 {[%emt 0:00:20]} 31. c3 {[%emt 0:00:16]} Be7 {[%emt 0:00:30]} 32. Nb2 {[%emt 0:00:32]} Ba3 {[%emt 0:00:52]} 0-1

[Event "GER-chT Youth Countries 2018"]
[Site "Wurzburg"]
[Date "2018.10.07"]
[Round "7"]
[White "Karsay, Pascal"]
[Black "Weller, Uli"]
[Result "1-0"]
[ECO "B31"]
[WhiteElo "2261"]
[BlackElo "2123"]
[Annotator "NA"]
[PlyCount "59"]
[EventDate "2018.10.03"]
[EventType "team-tourn"]
[EventCountry "GER"]
[SourceTitle "playchess.com"]
[Source "ChessBase"]
[SourceQuality "1"]
[TimeControl "40/5400+30:1800+30"]

{[%evp 12,54,6,21,32767,32767,32767,32767,32767,32767,57,48,72,54,82,23,55,-23,52,78,79,70,32767,32767,218,223,202,32767,410,32767,32767,382,339,275,298,252,290,32767,32767,32767,493,32767,657,497,770]} 1. Nf3 {[%emt 0:00:00]} c5 {[%emt 0:00:00]} 2. e4 {[%emt 0:00:00]} Nc6 {[%emt 0:00:00]} 3. Bb5 {[%emt 0:00:00]} g6 {[%emt 0:02:18]} 4. O-O {[%emt 0:00:05]} Bg7 {[%emt 0:00:12]} 5. Re1 {[%emt 0:00:10]} e5 {[%emt 0:03:04]} 6. b4 {[%emt 0:00:13]} cxb4 {[%emt 0:09:59]} 7. a3 {[%emt 0:01:35] LiveBook: 59 Games} Nge7 {[%emt 0:04:43]} 8. axb4 {[%emt 0:01:47]} O-O {[%emt 0:01:46]} 9. d3 {[%emt 0:03:37] B31: Sicilian: 2...Nc6 3 Bb5 g6} d6 {[%emt 0:03:46]} 10. c3 {[%emt 0:00:50]} h6 {[%emt 0:03:31]} 11. Bc4 {[%emt 0:10:39]} Kh7 {[%emt 0:04:47]} 12. Nbd2 {[%emt 0:07:13]} f5 {[%emt 0:02:27]} 13. Qb3 {[%emt 0:08:54]} (13. b5 $16 Na5 14. Ba3) 13... g5 {[%emt 0:16:24]} 14. h3 $146 {[%emt 0:15:00]} (14. b5 $14 Na5 15. Qb4 Nxc4 16. Nxc4) ({Predecessor:} 14. Nf1 f4 15. Qa2 Ng6 16. b5 Nce7 17. Ba3 g4 18. N3d2 Nh4 19. Be6 Neg6 20. Red1 Nxg2 21. Kxg2 Qh4 22. f3 Qh3+ 23. Kf2 Bxe6 {0-1 (23) Grund,H (2482)-Renner,C (2442) Germany 2000}) 14... Ng6 {[%emt 0:01:52]} ({Black should play} 14... g4 $11 15. hxg4 fxg4) 15. exf5 {[%emt 0:05:46]} Bxf5 {[%emt 0:01:34]} 16. Ne4 {[%emt 0:01:17]} Bf6 {[%emt 0:13:04]} 17. Be3 {[%emt 0:17:00]} Be7 {[%emt 0:11:56]} (17... Nce7 $16 {war einen Versuch wert.}) 18. Bd5 {[%emt 0:01:45]} Qd7 {[%emt 0:01:49]} 19. Ng3 {[%emt 0:02:07]} Bxh3 $2 {[%emt 0:02:56]} (19... Bxd3 20. c4 Bf5 21. Nxf5 Qxf5) 20. gxh3 {[%emt 0:00:52]} Qxh3 {[%emt 0:00:42]} 21. Be6 {[%emt 0:03:59]} g4 {[%emt 0:00:14]} 22. Nh2 {[%emt 0:00:32]} ({Nicht} 22. Bf5 Rxf5 23. Nxf5 Rf8 $15) 22... Nh4 {[%emt 0:02:36]} 23. Qd5 {[%emt 0:00:11]} Rf3 {[%emt 0:00:46]} 24. Qxf3 {[%emt 0:01:17]} Nxf3+ {[%emt 0:00:11]} 25. Nxf3 {[%emt 0:00:04]} h5 {[%emt 0:04:23]} (25... Rf8 $142) 26. Bg5 {[%emt 0:06:10]} Kg6 $2 {[%emt 0:00:51]} (26... Rf8) 27. b5 {[%emt 0:02:56]} Bxg5 $18 {[%emt 0:02:11]} (27... Rf8 $142) 28. Bf7+ {[%emt 0:00:22]} Kg7 {[%emt 0:00:57]} 29. Nxg5 {[%emt 0:00:10]} Qh4 {[%emt 0:00:06]} 30. Nf5+ {Kg6} 1-0

[Event "GER-chT Youth Countries 2018"]
[Site "Wurzburg"]
[Date "2018.10.07"]
[Round "7"]
[White "Nguyen, Alex Dac-Vuong"]
[Black "Wagner, Leopold Franziskus"]
[Result "1-0"]
[ECO "B13"]
[WhiteElo "2240"]
[BlackElo "1934"]
[Annotator "NA"]
[PlyCount "95"]
[EventDate "2018.10.03"]
[EventType "team-tourn"]
[EventCountry "GER"]
[SourceTitle "playchess.com"]
[Source "ChessBase"]
[SourceQuality "1"]
[TimeControl "40/5400+30:1800+30"]

{[%evp 18,92,0,0,12,0,1,0,41,37,45,20,31,4,33,26,27,2,64,9,27,0,0,8,17,2,14,-25,-19,-25,-5,-7,32767,32767,9,0,0,0,32767,32767,32767,32767,32767,32767,7,0,0,32767,0,0,32767,32767,32767,32767,32767,32767,32767,32767,6,32767,0,0,32767,32767,32767,0,359,32767,671,32767,32767,32767,32767,32767,29973,12844,12846]} 1. e4 {[%emt 0:00:00]} c6 {[%emt 0:00:00]} 2. d4 {[%emt 0:00:00]} d5 {[%emt 0:00:00]} 3. exd5 {[%emt 0:00:00]} cxd5 {[%emt 0:00:00]} 4. c4 {[%emt 0:00:00]} Nf6 {[%emt 0:00:04]} 5. Nc3 {[%emt 0:00:01]} Nc6 {[%emt 0:00:04]} 6. Bg5 {[%emt 0:00:08]} Ne4 {[%emt 0:00:28]} 7. cxd5 {[%emt 0:22:38]} Nxc3 {[%emt 0:01:43]} 8. bxc3 {[%emt 0:00:08]} Qxd5 {[%emt 0:00:05]} 9. Bf4 {[%emt 0:05:27]} g6 {[%emt 0:06:15]} 10. Nf3 {[%emt 0:01:22]} Bg7 {[%emt 0:04:12]} 11. Be2 {[%emt 0:01:58]} O-O {[%emt 0:02:24]} 12. O-O {[%emt 0:00:38] LiveBook: 3 Games} Bg4 $146 {[%emt 0:03:32] D91: Grünfeld: 4 Nf3 Bg7 5 Bg5} ({Predecessor:} 12... Qa5 13. Qb3 e5 14. Nxe5 Nxe5 15. Bxe5 Bxe5 16. dxe5 Qxe5 17. Bf3 Be6 18. Qxb7 Qxc3 19. Qxa8 Rxa8 20. Bxa8 {1-0 (46) Prohaszka,P (2599)-Bromberger,S (2526) Austria 2015}) 13. Re1 {[%emt 0:05:43]} Na5 {[%emt 0:00:43]} 14. Qa4 {[%emt 0:06:21]} Rac8 {[%emt 0:01:43]} 15. Rab1 {[%emt 0:03:33]} Bd7 {[%emt 0:07:00]} 16. Qb4 {[%emt 0:00:27]} e6 {[%emt 0:01:26]} 17. Ne5 {[%emt 0:09:11]} Bxe5 {[%emt 0:06:31]} ({Better is} 17... Nc6 $11 18. Qxb7 Bxe5 19. dxe5 Rb8 $11) 18. Bxe5 {[%emt 0:09:10]} Nc6 {[%emt 0:01:19]} 19. Qxb7 Nxe5 {[%emt 0:00:11]} 20. Qxd5 $1 {[%emt 0:00:32]} ({Wrong is} 20. dxe5 $2 Bc6 $19) 20... exd5 {[%emt 0:00:06]} 21. dxe5 {[%emt 0:00:05]} Rxc3 {[%emt 0:00:15]} 22. Rbd1 {[%emt 0:16:14]} Be6 {[%emt 0:00:16]} 23. Rd2 {[%emt 0:00:06]} Rfc8 {[%emt 0:00:18]} 24. Bd1 {[%emt 0:04:07]} a5 {[%emt 0:02:47]} 25. Bb3 {[%emt 0:00:14]} Kf8 {[%emt 0:02:35]} 26. Red1 {[%emt 0:03:58]} ({Not} 26. Bxd5 $2 Rd8 $19) 26... Rc1 {[%emt 0:02:38]} 27. Kf1 {[%emt 0:00:22]} Rxd1+ {[%emt 0:00:11]} 28. Rxd1 {[%emt 0:00:05]} Rc5 {[%emt 0:03:06]} 29. Rd4 {[%emt 0:03:05]} Ke7 {[%emt 0:00:40]} 30. f4 {[%emt 0:03:50]} Rc1+ {[%emt 0:06:03]} 31. Kf2 {[%emt 0:00:28]} f6 {[%emt 0:01:35]} 32. Ra4 {[%emt 0:02:44]} Rc5 {[%emt 0:00:21]} 33. Ke3 {[%emt 0:00:40]} fxe5 {[%emt 0:01:12]} 34. fxe5 {[%emt 0:00:03]} Kd7 {[%emt 0:01:08]} 35. Rh4 {[%emt 0:01:09]} h5 {[%emt 0:00:33]} 36. Rd4 {[%emt 0:00:04]} Ke7 {[%emt 0:04:29]} 37. h4 {[%emt 0:00:38]} Kf7 {[%emt 0:00:26]} 38. Rf4+ {[%emt 0:02:13]} Ke7 {[%emt 0:00:29]} 39. Rd4 {[%emt 0:00:03]} Rb5 {[%emt 0:01:59]} 40. g3 {[%emt 0:01:19]} Bg8 {[%emt 0:01:40]} 41. Kf4 {[%emt 0:07:52]} Ke6 $2 {[%emt 0:01:15]} (41... Bf7 $11) 42. Rxd5 {[%emt 0:01:27]} Rxd5 {[%emt 0:00:18]} (42... g5+ $142 43. Ke4 Bh7+ 44. Kd4 Rxd5+ 45. Bxd5+ Ke7 46. hxg5 Bb1) 43. Ke4 {[%emt 0:00:05]} Bh7 {[%emt 0:02:46]} 44. Bxd5+ {[%emt 0:00:15]} Ke7 {[%emt 0:00:04]} 45. Kf4 {[%emt 0:00:12]} Kf8 {[%emt 0:03:16]} 46. Kg5 {[%emt 0:00:14]} Kg7 $18 {[%emt 0:00:05]} 47. a3 {[%emt 0:00:06]} a4 {[%emt 0:00:07]} 48. Bc4 {[%emt 0:00:04]} 1-0

[Event "GER-chT Youth Countries 2018"]
[Site "Wurzburg"]
[Date "2018.10.07"]
[Round "7"]
[White "Hartge, Gedeon"]
[Black "Schulze, Lara"]
[Result "1/2-1/2"]
[ECO "E49"]
[WhiteElo "2214"]
[BlackElo "2122"]
[Annotator "NA"]
[PlyCount "81"]
[EventDate "2018.10.03"]
[EventType "team-tourn"]
[EventCountry "GER"]
[SourceTitle "playchess.com"]
[Source "ChessBase"]
[SourceQuality "1"]
[TimeControl "40/5400+30:1800+30"]

{[%evp 28,80,51,0,49,6,31,30,64,96,112,106,139,143,146,125,171,159,189,168,166,32767,32767,167,177,8,7,32767,10,32767,32767,0,32767,32767,3,1,27,32767,32767,32767,32767,0,32767,1,8,6,8,0,0,0,32767,32767,32767,8,16]} 1. d4 {[%emt 0:00:00]} Nf6 {[%emt 0:00:00]} 2. c4 {[%emt 0:00:00]} e6 {[%emt 0:00:00]} 3. Nc3 {[%emt 0:00:00]} Bb4 {[%emt 0:00:00]} 4. e3 {[%emt 0:00:00]} O-O {[%emt 0:00:00]} 5. Bd3 {[%emt 0:00:09]} d5 {[%emt 0:00:00]} 6. a3 {[%emt 0:00:05]} Bxc3+ {[%emt 0:01:30]} 7. bxc3 {[%emt 0:00:06]} c5 {[%emt 0:01:08]} 8. cxd5 {[%emt 0:00:42]} exd5 {[%emt 0:00:35]} 9. Ne2 {[%emt 0:00:05]} b6 {[%emt 0:02:36]} 10. O-O {[%emt 0:00:12]} Ba6 {[%emt 0:01:22]} 11. f3 {[%emt 0:01:36]} Bxd3 {[%emt 0:06:02]} 12. Qxd3 {[%emt 0:00:06]} Re8 {[%emt 0:00:21]} 13. Ng3 {[%emt 0:01:01]} Nc6 {[%emt 0:04:52]} 14. Bb2 {[%emt 0:02:21]} h5 {[%emt 0:19:56] E49: Nimzo-Indian: Rubinstein: 5 Bd3 d5 6 a3 Bxc3+ 7 bxc3} 15. Rae1 {[%emt 0:04:34] LiveBook: 21 Games} g6 {[%emt 0:06:20]} 16. Nh1 {[%emt 0:10:29] [#]} Qc7 $146 {[%emt 0:08:37]} ({Predecessor:} 16... Rc8 17. Nf2 Qc7 18. Re2 cxd4 19. cxd4 Nd8 20. Rc1 Qd7 21. Rxc8 Qxc8 22. e4 {1-0 (53) Berkes,F (2668)-Kovacevic,A (2512) Hungary 2014}) 17. e4 {[%emt 0:11:24]} dxe4 {[%emt 0:02:40]} 18. fxe4 {[%emt 0:00:54]} Ng4 {[%emt 0:00:18] [#]} 19. e5 $1 {[%emt 0:00:38]} Rad8 {[%emt 0:01:47] [#]} 20. Qg3 $1 {[%emt 0:07:20]} cxd4 {[%emt 0:10:17]} 21. cxd4 {[%emt 0:00:13]} Nxd4 {[%emt 0:03:11]} (21... Kh7 $16) 22. Bxd4 {[%emt 0:00:29]} Rxd4 {[%emt 0:02:48]} 23. e6 $1 {[%emt 0:00:01]} Qxg3 {[%emt 0:03:32]} ({Don't go for} 23... Re7 $2 24. Qxc7 Rxc7 25. e7 $18) 24. exf7+ {[%emt 0:00:06]} Kh7 {[%emt 0:00:11]} 25. Nxg3 {[%emt 0:01:13]} ({Worse is} 25. hxg3 Rf8 $17) 25... Rf8 {[%emt 0:00:07]} 26. Re7 {[%emt 0:12:12]} (26. h3 $16) 26... Kg7 $1 {[%emt 0:06:11]} 27. Rxa7 {[%emt 0:18:11]} Nh6 {[%emt 0:03:51]} 28. Rb7 {[%emt 0:13:49]} Rxf7 {[%emt 0:00:56]} 29. Rfxf7+ {[%emt 0:00:17]} Nxf7 {[%emt 0:00:02]} 30. Rxb6 {[%emt 0:00:22]} Ne5 {[%emt 0:03:47]} 31. Rb1 {[%emt 0:08:14]} h4 {[%emt 0:03:19]} 32. Nf1 {[%emt 0:01:06]} h3 {[%emt 0:05:11]} 33. Rb7+ {[%emt 0:04:19]} Kh6 {[%emt 0:01:20]} 34. Ra7 {[%emt 0:00:30]} Rg4 {[%emt 0:02:13]} 35. Ng3 {[%emt 0:02:12]} hxg2 {[%emt 0:01:00]} 36. Kxg2 {[%emt 0:00:05]} Rc4 {[%emt 0:00:15]} 37. Nf1 {[%emt 0:02:18]} Rg4+ {[%emt 0:01:01]} 38. Ng3 {[%emt 0:00:16]} Rc4 {[%emt 0:00:09]} 39. Nf1 {[%emt 0:01:01]} Rg4+ {[%emt 0:00:05]} 40. Kf2 {[%emt 0:00:52]} Rf4+ $11 {[%emt 0:01:09]} 41. Kg2 {[%emt 0:05:10]} 1/2-1/2